fUST/lending_fUST_20250901
["ID","MTS","AMOUNT","RATE_DAILY","PERIOD"]
[382527066,1756657844845,-500.0,0.00017573,2]
[382527068,1756657844855,-500.0,0.00017573,2]
[382527070,1756657844864,-500.0,0.00017573,2]
[382527072,1756657844874,-500.0,0.00017573,2]
[382527074,1756657844884,-500.0,0.00017573,2]
[382527076,1756657844893,-500.0,0.00017573,2]
[382527078,1756657844903,-500.0,0.00017573,2]
[382527080,1756657844912,-500.0,0.00017573,2]
[382527082,1756657844921,-158.65713755,0.00017573,2]
[382527084,1756657844931,-543.95879641,0.00017573,2]
[382527086,1756657844940,-500.0,0.00017573,2]
[382527088,1756657844950,-500.0,0.00017573,2]
[382527089,1756657844960,-500.0,0.00017573,2]
[382527091,1756657844970,-500.0,0.00017573,2]
[382527093,1756657844980,-500.0,0.00017573,2]
[382527095,1756657844990,-500.0,0.00017573,2]
[382527098,1756657845000,-500.0,0.00017573,2]
[382527100,1756657845010,-160.77188662,0.00017573,2]
[382527101,1756657845020,-500.0,0.00017573,2]
[382527103,1756657845030,-500.39149769,0.00017573,2]
[382527105,1756657845040,-500.0,0.00017573,2]
[382527107,1756657845050,-500.0,0.00017573,2]
[382527109,1756657845059,-500.0,0.00017573,2]
[382527111,1756657845068,-181.91700237,0.00017573,2]
[382527113,1756657845079,-502.06332901,0.00017573,2]
[382527115,1756657845088,-500.0,0.00017573,2]
[382527117,1756657845097,-518.48245204,0.00017573,2]
[382527119,1756657845107,-500.0,0.00017573,2]
[382527121,1756657845117,-500.0,0.00017573,2]
[382527123,1756657845127,-500.0,0.00017573,2]
[382527125,1756657845136,-504.83033594,0.00017573,2]
[382527127,1756657845145,-272.71618602,0.00017576,2]
[382527129,1756657845154,-300.0,0.00017596,2]
[382527131,1756657845166,-300.0,0.00017596,2]
[382527133,1756657845175,-300.0,0.00017596,2]
[382527135,1756657845186,-300.0,0.00017596,2]
[382527137,1756657845195,-300.0,0.00017596,2]
[382527139,1756657845205,-300.0,0.00017596,2]
[382527141,1756657845215,-300.0,0.00017596,2]
[382527143,1756657845232,-300.0,0.00017596,2]
[382527145,1756657845242,-300.0,0.00017596,2]
[382527146,1756657845260,-300.0,0.00017596,2]
[382527148,1756657845270,-300.0,0.00017596,2]
[382527150,1756657845279,-300.0,0.00017596,2]
[382527152,1756657845289,-300.0,0.00017596,2]
[382527154,1756657845298,-300.0,0.00017596,2]
[382527156,1756657845307,-300.0,0.00017596,2]
[382527158,1756657845317,-600.0,0.00017596,2]
[382527160,1756657845327,-151.0,0.000176,2]
[382527163,1756657845338,-151.0,0.000176,2]
[382527165,1756657845348,-151.0,0.000176,2]
[382527167,1756657845358,-2098.79470144,0.000176,2]
[382527169,1756657845369,-151.0,0.000176,2]
[382527171,1756657845378,-151.0,0.000176,2]
[382527173,1756657845388,-484.64539414,0.0001763,2]
[382527175,1756657845397,-489.0,0.00017657,2]
[382527177,1756657845406,-489.0,0.00017676,2]
[382527179,1756657845415,-484.64539414,0.00017699,2]
[382527181,1756657845424,-151.0,0.000177,2]
[382527182,1756657845434,-151.0,0.000177,2]
[382527184,1756657845444,-151.0,0.000177,2]
[382527187,1756657845455,-151.0,0.000177,2]
[382527188,1756657845465,-489.0,0.0001771,2]
[382527191,1756657845474,-489.0,0.00017713,2]
[382527192,1756657845484,-774.0,0.00017715,2]
[382527194,1756657845494,-489.0,0.00017759,2]
[382527196,1756657845503,-500.0,0.00017787,2]
[382527198,1756657845513,-500.0,0.00017787,2]
[382527200,1756657845523,-500.0,0.00017787,2]
[382527202,1756657845533,-500.0,0.00017792,2]
[382527204,1756657845543,-500.0,0.00017795,2]
[382527206,1756657845553,-432.56640123,0.00017795,2]
[382527208,1756657845563,-504.1131352,0.00017795,2]
[382527210,1756657845573,-480.0,0.00017798,2]
[382527212,1756657845583,-480.0,0.00017798,2]
[382527214,1756657845592,-3028.397421,0.00017798,2]
[382527217,1756657845602,-505.61,0.00017798,2]
[382527220,1756657845611,-493.46,0.00017798,2]
[382527223,1756657845620,-489.45,0.00017798,2]
[382527226,1756657845629,-480.0,0.00017798,2]
[382527228,1756657845639,-745.47,0.00017798,2]
[382527230,1756657845648,-481.98,0.00017798,2]
[382527232,1756657845657,-844.26,0.00017798,2]
[382527234,1756657845666,-480.0,0.00017798,2]
[382527236,1756657845676,-480.0,0.00017798,2]
[382527238,1756657845686,-838.05,0.00017798,2]
[382527240,1756657845695,-1080.38,0.00017798,2]
[382527242,1756657845705,-1256.77,0.00017798,2]
[382527244,1756657845715,-480.0,0.00017798,2]
[382527246,1756657845724,-1257.59,0.00017798,2]
[382527248,1756657845734,-606.92,0.00017798,2]
[382527250,1756657845744,-480.0,0.00017798,2]
[382527252,1756657845753,-549.02,0.00017798,2]
[382527254,1756657845763,-480.0,0.00017798,2]
[382527256,1756657845772,-480.0,0.00017798,2]
[382527258,1756657845782,-618.78,0.00017798,2]
[382527260,1756657845791,-480.0,0.00017798,2]
[382527262,1756657845802,-1450.68,0.00017798,2]
[382527264,1756657845811,-1736.43,0.00017798,2]
[382527266,1756657845820,-638.98,0.00017798,2]
[382527268,1756657845831,-480.0,0.00017799,2]
[382527270,1756657845840,-480.0,0.00017799,2]
[382527272,1756657845850,-480.0,0.00017799,2]
[382527274,1756657845859,-480.0,0.00017799,2]
[382527276,1756657845869,-525.69,0.00017799,2]
[382527278,1756657845878,-480.0,0.00017799,2]
[382527280,1756657845887,-480.0,0.00017799,2]
[382527282,1756657845897,-598.54,0.00017799,2]
[382527284,1756657845907,-480.0,0.00017799,2]
[382527286,1756657845917,-480.0,0.00017799,2]
[382527287,1756657845926,-607.62937422,0.00017799,2]
[382527289,1756657845936,-1420.98,0.00017799,2]
[382527291,1756657845946,-480.0,0.00017799,2]
[382527293,1756657845955,-503.41,0.00017799,2]
[382527296,1756657845966,-480.0,0.00017799,2]
[382527297,1756657845975,-480.0,0.00017799,2]
[382527299,1756657845985,-480.0,0.00017799,2]
[382527301,1756657845995,-480.0,0.00017799,2]
[382527303,1756657846004,-480.0,0.00017799,2]
[382527305,1756657846013,-1406.02,0.00017799,2]
[382527307,1756657846023,-613.9538047,0.00017799,2]
[382527309,1756657846033,-832.07,0.00017799,2]
[382527311,1756657846043,-480.0,0.00017799,2]
[382527313,1756657846052,-480.0,0.00017799,2]
[382527315,1756657846063,-480.0,0.00017799,2]
[382527317,1756657846073,-480.0,0.00017799,2]
[382527319,1756657846082,-480.0,0.00017799,2]
[382527321,1756657846091,-480.0,0.00017799,2]
[382527323,1756657846102,-692.35,0.00017799,2]
[382527325,1756657846111,-480.0,0.00017799,2]
[382527327,1756657846121,-480.0,0.00017799,2]
[382527329,1756657846132,-828.28,0.00017799,2]
[382527331,1756657846142,-687.22,0.00017799,2]
[382527332,1756657846151,-924.77,0.00017799,2]
[382527335,1756657846162,-480.0,0.00017799,2]
[382527337,1756657846171,-571.26,0.00017799,2]
[382527338,1756657846180,-480.0,0.00017799,2]
[382527340,1756657846190,-734.92,0.00017799,2]
[382527343,1756657846199,-901.21,0.00017799,2]
[382527344,1756657846209,-719.82,0.00017799,2]
[382527347,1756657846220,-636.43,0.00017799,2]
[382527348,1756657846232,-480.0,0.00017799,2]
[382527350,1756657846241,-608.79,0.00017799,2]
[382527352,1756657846250,-480.0,0.00017799,2]
[382527354,1756657846261,-480.0,0.00017799,2]
[382527356,1756657846272,-551.1974654,0.00017799,2]
[382527358,1756657846282,-480.0,0.00017799,2]
[382527360,1756657846291,-480.0,0.00017799,2]
[382527362,1756657846302,-553.41,0.00017799,2]
[382527364,1756657846312,-480.0,0.00017799,2]
[382527366,1756657846321,-480.0,0.00017799,2]
[382527368,1756657846330,-920.8,0.00017799,2]
[382527370,1756657846340,-1002.33,0.00017799,2]
[382527372,1756657846350,-480.0,0.00017799,2]
[382527374,1756657846361,-806.79,0.00017799,2]
[382527376,1756657846370,-480.0,0.00017799,2]
[382527378,1756657846380,-480.0,0.00017799,2]
[382527380,1756657846390,-715.13,0.00017799,2]
[382527382,1756657846399,-480.0,0.00017799,2]
[382527384,1756657846408,-480.0,0.00017799,2]
[382527386,1756657846417,-480.0,0.00017799,2]
[382527388,1756657846427,-480.0,0.00017799,2]
[382527390,1756657846436,-2086.3,0.00017799,2]
[382527392,1756657846445,-480.0,0.00017799,2]
[382527394,1756657846457,-480.0,0.00017799,2]
[382527396,1756657846466,-1306.82,0.00017799,2]
[382527398,1756657846475,-480.0,0.00017799,2]
[382527400,1756657846484,-788.92,0.00017799,2]
[382527402,1756657846494,-480.0,0.00017799,2]
[382527404,1756657846503,-916.68,0.00017799,2]
[382527406,1756657846513,-480.0,0.00017799,2]
[382527408,1756657846522,-636.2,0.00017799,2]
[382527410,1756657846532,-480.0,0.00017799,2]
[382527412,1756657846542,-480.0,0.00017799,2]
[382527414,1756657846551,-480.0,0.00017799,2]
[382527416,1756657846561,-480.0,0.00017799,2]
[382527418,1756657846571,-572.73,0.00017799,2]
[382527419,1756657846580,-1206.47,0.00017799,2]
[382527421,1756657846589,-480.0,0.00017799,2]
[382527423,1756657846598,-730.21,0.00017799,2]
[382527425,1756657846608,-480.0,0.00017799,2]
[382527427,1756657846619,-480.0,0.00017799,2]
[382527429,1756657846628,-480.0,0.00017799,2]
[382527431,1756657846638,-843.85,0.00017799,2]
[382527433,1756657846647,-480.0,0.00017799,2]
[382527435,1756657846657,-704.81,0.00017799,2]
[382527437,1756657846667,-626.04,0.00017799,2]
[382527439,1756657846676,-480.0,0.00017799,2]
[382527441,1756657846686,-1454.86,0.00017799,2]
[382527443,1756657846696,-480.0,0.00017799,2]
[382527445,1756657846705,-1004.82,0.00017799,2]
[382527447,1756657846715,-1694.45,0.00017799,2]
[382527449,1756657846724,-831.25,0.00017799,2]
[382527451,1756657846734,-480.0,0.00017799,2]
[382527453,1756657846743,-479.83997074,0.00017799,2]
[382527455,1756657846753,-480.0,0.00017799,2]
[382527457,1756657846763,-480.0,0.00017799,2]
[382527459,1756657846772,-480.0,0.00017799,2]
[382527461,1756657846782,-480.0,0.00017799,2]
[382527463,1756657846791,-622.54,0.00017799,2]
[382527465,1756657846801,-580.61,0.00017799,2]
[382527467,1756657846810,-549.93,0.00017799,2]
[382527469,1756657846820,-480.0,0.00017799,2]
[382527471,1756657846830,-480.0,0.00017799,2]
[382527473,1756657846839,-480.0,0.00017799,2]
[382527475,1756657846848,-513.99,0.00017799,2]
[382527477,1756657846858,-480.0,0.00017799,2]
[382527479,1756657846867,-644.35,0.00017799,2]
[382527481,1756657846877,-480.0,0.00017799,2]
[382527483,1756657846887,-1195.69,0.00017799,2]
[382527485,1756657846896,-1905.95,0.00017799,2]
[382527487,1756657846905,-1349.31,0.00017799,2]
[382527489,1756657846915,-480.0,0.00017799,2]
[382527491,1756657846925,-480.0,0.00017799,2]
[382527493,1756657846934,-1533.18,0.00017799,2]
[382527495,1756657846943,-480.0,0.00017799,2]
[382527497,1756657846954,-1320.11,0.00017799,2]
[382527499,1756657846963,-482.84,0.00017799,2]
[382527501,1756657846972,-618.4,0.00017799,2]
[382527503,1756657846982,-480.0,0.00017799,2]
[382527505,1756657846992,-1315.24,0.00017799,2]
[382527507,1756657847001,-480.0,0.00017799,2]
[382527509,1756657847011,-480.0,0.00017799,2]
[382527511,1756657847020,-480.0,0.00017799,2]
[382527513,1756657847030,-480.0,0.00017799,2]
[382527515,1756657847040,-480.0,0.00017799,2]
[382527517,1756657847049,-1083.69,0.00017799,2]
[382527519,1756657847059,-1286.27,0.00017799,2]
[382527521,1756657847068,-480.0,0.00017799,2]
[382527522,1756657847078,-480.0,0.00017799,2]
[382527525,1756657847087,-480.0,0.00017799,2]
[382527526,1756657847097,-480.0,0.00017799,2]
[382527529,1756657847107,-1082.04,0.00017799,2]
[382527531,1756657847116,-480.0,0.00017799,2]
[382527533,1756657847126,-480.0,0.00017799,2]
[382527535,1756657847136,-151.0,0.00017799,2]
[382527537,1756657847146,-712.42,0.00017799,2]
[382527539,1756657847156,-1334.57,0.00017799,2]
[382527541,1756657847166,-381.87211716,0.00017799,2]
[382527543,1756657847177,-480.0,0.00017799,2]
[382527545,1756657847189,-480.0,0.00017799,2]
[382527546,1756657847200,-1378.19,0.00017799,2]
[382527548,1756657847209,-151.0,0.00017799,2]
[382527550,1756657847221,-270.445229,0.00017799,2]
[382527552,1756657847231,-1005.83,0.00017799,2]
[382527553,1756657847239,-1090.16,0.00017799,2]
[382527554,1756657847249,-1500.78,0.00017799,2]
[382527555,1756657847261,-480.0,0.00017799,2]
[382527556,1756657847270,-502.92,0.00017799,2]
[382527557,1756657847282,-151.0,0.00017799,2]
[382527558,1756657847290,-536.22,0.00017799,2]
[382527559,1756657847299,-506.47,0.00017799,2]
[382527560,1756657847309,-151.0,0.00017799,2]
[382527561,1756657847318,-480.0,0.00017799,2]
[382527562,1756657847327,-719.81,0.00017799,2]
[382527563,1756657847336,-1481.01,0.00017799,2]
[382527565,1756657847346,-480.0,0.00017799,2]
[382527566,1756657847357,-480.0,0.00017799,2]
[382527569,1756657847369,-480.0,0.00017799,2]
[382527571,1756657847378,-151.0,0.00017799,2]
[382527572,1756657847388,-723.92,0.00017799,2]
[382527574,1756657847399,-480.0,0.00017799,2]
[382527576,1756657847408,-480.0,0.00017799,2]
[382527578,1756657847419,-480.0,0.00017799,2]
[382527596,1756657847575,-635.13,0.00017799,2]
[382527598,1756657847585,-480.0,0.00017799,2]
[382527600,1756657847594,-480.0,0.00017799,2]
[382527602,1756657847604,-480.0,0.00017799,2]
[382527604,1756657847613,-151.0,0.00017799,2]
[382527606,1756657847622,-168.887494,0.00017799,2]
[382527608,1756657847631,-650.55,0.00017799,2]
[382527610,1756657847640,-168.887494,0.00017799,2]
[382527612,1756657847649,-574.39,0.00017799,2]
[382527614,1756657847660,-1438.4,0.00017799,2]
[382527616,1756657847669,-168.887494,0.00017799,2]
[382527618,1756657847678,-648.66,0.00017799,2]
[382527620,1756657847687,-515.67,0.00017799,2]
[382527622,1756657847697,-168.887494,0.00017799,2]
[382527624,1756657847707,-480.0,0.00017799,2]
[382527626,1756657847717,-151.0,0.00017799,2]
[382527628,1756657847727,-151.0,0.00017799,2]
[382527630,1756657847736,-622.29,0.00017799,2]
[382527632,1756657847745,-151.0,0.00017799,2]
[382527634,1756657847755,-548.92,0.00017799,2]
[382527636,1756657847765,-480.0,0.00017799,2]
[382527638,1756657847775,-598.76,0.00017799,2]
[382527640,1756657847784,-703.41,0.00017799,2]
[382527642,1756657847794,-169.664587,0.00017799,2]
[382527644,1756657847803,-508.02,0.00017799,2]
[382527646,1756657847812,-151.0,0.00017799,2]
[382527648,1756657847822,-480.0,0.00017799,2]
[382527650,1756657847832,-151.0,0.00017799,2]
[382527652,1756657847841,-151.0,0.00017799,2]
[382527654,1756657847851,-480.0,0.00017799,2]
[382527656,1756657847860,-151.0,0.00017799,2]
[382527658,1756657847869,-568.45,0.00017799,2]
[382527660,1756657847879,-151.0,0.00017799,2]
[382527662,1756657847889,-151.0,0.00017799,2]
[382527664,1756657847899,-480.0,0.00017799,2]
[382527666,1756657847908,-1010.37,0.00017799,2]
[382527668,1756657847917,-480.0,0.00017799,2]
[382527670,1756657847927,-1178.78,0.00017799,2]
[382527672,1756657847936,-480.0,0.00017799,2]
[382527674,1756657847946,-480.0,0.00017799,2]
[382527676,1756657847956,-480.0,0.00017799,2]
[382527678,1756657847965,-480.0,0.00017799,2]
[382527680,1756657847975,-792.37,0.00017799,2]
[382527683,1756657847985,-480.0,0.00017799,2]
[382527685,1756657847994,-571.38,0.00017799,2]
[382527687,1756657848004,-822.78,0.00017799,2]
[382527688,1756657848014,-480.0,0.00017799,2]
[382527690,1756657848023,-238.055936,0.00017799,2]
[382527692,1756657848033,-480.0,0.00017799,2]
[382527694,1756657848042,-480.0,0.00017799,2]
[382527696,1756657848054,-480.0,0.00017799,2]
[382527698,1756657848063,-238.055936,0.00017799,2]
[382527701,1756657848074,-984.06,0.00017799,2]
[382527703,1756657848083,-480.0,0.00017799,2]
[382527704,1756657848094,-783.71,0.00017799,2]
[382527707,1756657848104,-480.0,0.00017799,2]
[382527709,1756657848116,-703.88,0.00017799,2]
[382527711,1756657848126,-238.055936,0.00017799,2]
[382527713,1756657848135,-238.055936,0.00017799,2]
[382527715,1756657848145,-480.0,0.00017799,2]
[382527716,1756657848155,-480.0,0.00017799,2]
[382527718,1756657848165,-1129.35,0.00017799,2]
[382527721,1756657848175,-480.0,0.00017799,2]
[382527722,1756657848185,-151.0,0.00017799,2]
[382527724,1756657848194,-480.0,0.00017799,2]
[382527727,1756657848204,-151.0,0.00017799,2]
[382527728,1756657848214,-265.5352574,0.00017799,2]
[382527730,1756657848229,-151.0,0.00017799,2]
[382527733,1756657848239,-480.0,0.00017799,2]
[382527734,1756657848248,-577.49,0.00017799,2]
[382527736,1756657848260,-1291.95,0.00017799,2]
[382527738,1756657848271,-769.01,0.00017799,2]
[382527740,1756657848282,-151.0,0.00017799,2]
[382527742,1756657848294,-151.0,0.00017799,2]
[382527744,1756657848304,-480.0,0.00017799,2]
[382527746,1756657848314,-1096.6,0.00017799,2]
[382527749,1756657848324,-1238.06,0.00017799,2]
[382527751,1756657848333,-578.23,0.00017799,2]
[382527752,1756657848343,-1313.99,0.00017799,2]
[382527754,1756657848354,-914.05,0.00017799,2]
[382527756,1756657848363,-480.0,0.00017799,2]
[382527759,1756657848374,-1032.59,0.00017799,2]
[382527760,1756657848383,-856.0,0.00017799,2]
[382527762,1756657848393,-480.0,0.00017799,2]
[382527765,1756657848403,-480.0,0.00017799,2]
[382527767,1756657848413,-820.62,0.00017799,2]
[382527769,1756657848423,-480.0,0.00017799,2]
[382527771,1756657848432,-480.0,0.00017799,2]
[382527773,1756657848442,-480.0,0.00017799,2]
[382527775,1756657848451,-480.0,0.00017799,2]
[382527777,1756657848461,-912.55,0.00017799,2]
[382527779,1756657848471,-480.0,0.00017799,2]
[382527781,1756657848480,-480.0,0.00017799,2]
[382527783,1756657848489,-669.3,0.00017799,2]
[382527785,1756657848499,-583.43,0.00017799,2]
[382527787,1756657848509,-480.0,0.00017799,2]
[382527789,1756657848519,-1390.06,0.00017799,2]
[382527791,1756657848529,-480.0,0.00017799,2]
[382527793,1756657848539,-480.0,0.00017799,2]
[382527795,1756657848548,-1386.68,0.00017799,2]
[382527797,1756657848558,-645.85,0.00017799,2]
[382527799,1756657848567,-480.0,0.00017799,2]
[382527801,1756657848576,-480.0,0.00017799,2]
[382527803,1756657848587,-480.0,0.00017799,2]
[382527805,1756657848596,-692.89,0.00017799,2]
[382527807,1756657848606,-480.0,0.00017799,2]
[382527809,1756657848615,-1205.95,0.00017799,2]
[382527811,1756657848624,-480.0,0.00017799,2]
[382527813,1756657848634,-480.0,0.00017799,2]
[382527815,1756657848644,-480.0,0.00017799,2]
[382527817,1756657848653,-801.01,0.00017799,2]
[382527819,1756657848663,-1406.51,0.00017799,2]
[382527821,1756657848672,-480.0,0.00017799,2]
[382527823,1756657848681,-1292.99,0.00017799,2]
[382527825,1756657848690,-480.0,0.00017799,2]
[382527827,1756657848700,-1268.18,0.00017799,2]
[382527829,1756657848709,-828.97,0.00017799,2]
[382527831,1756657848719,-480.0,0.00017799,2]
[382527833,1756657848728,-1362.94,0.00017799,2]
[382527835,1756657848737,-942.78,0.00017799,2]
[382527837,1756657848747,-1059.86,0.00017799,2]
[382527839,1756657848756,-953.14,0.00017799,2]
[382527841,1756657848765,-892.2,0.00017799,2]
[382527843,1756657848774,-1526.36,0.00017799,2]
[382527845,1756657848784,-1469.9,0.00017799,2]
[382527847,1756657848794,-480.0,0.00017799,2]
[382527849,1756657848804,-480.0,0.00017799,2]
[382527851,1756657848813,-996.57,0.00017799,2]
[382527852,1756657848822,-480.0,0.00017799,2]
[382527854,1756657848831,-551.22,0.00017799,2]
[382527857,1756657848841,-480.0,0.00017799,2]
[382527859,1756657848850,-480.0,0.00017799,2]
[382527861,1756657848859,-594.12225828,0.00017799,2]
[382527863,1756657848869,-1077.0,0.00017799,2]
[382527865,1756657848878,-480.0,0.00017799,2]
[382527866,1756657848888,-1190.51,0.00017799,2]
[382527868,1756657848897,-480.0,0.00017799,2]
[382527871,1756657848908,-1572.58,0.00017799,2]
[382527872,1756657848919,-531.35,0.00017799,2]
[382527874,1756657848928,-8598.6,0.00017799,2]
[382527876,1756657848938,-1217.15,0.00017799,2]
[382527878,1756657848949,-480.0,0.00017799,2]
[382527880,1756657848958,-713.41,0.00017799,2]
[382527883,1756657848968,-548.91,0.00017799,2]
[382527885,1756657848983,-480.0,0.00017799,2]
[382527888,1756657849000,-500.0,0.00017799,2]
[382527891,1756657849016,-481.1,0.00017799,2]
[382527893,1756657849030,-831.11,0.00017799,2]
[382527896,1756657849046,-606.72,0.00017799,2]
[382527898,1756657849062,-598.1,0.00017799,2]
[382527900,1756657849076,-480.0,0.00017799,2]
[382527903,1756657849090,-1770.37,0.00017799,2]
[382527905,1756657849105,-5189.54,0.00017799,2]
[382527908,1756657849122,-480.0,0.00017799,2]
[382527911,1756657849136,-536.58,0.00017799,2]
[382527913,1756657849151,-279.75704902,0.00017799,2]
[382527916,1756657849164,-480.0,0.00017799,2]
[382527918,1756657849179,-3314.73,0.00017799,2]
[382527921,1756657849193,-480.0,0.00017799,2]
[382527923,1756657849205,-480.0,0.00017799,2]
[382527925,1756657849219,-480.0,0.00017799,2]
[382527927,1756657849232,-1145.72,0.00017799,2]
[382527930,1756657849246,-480.0,0.00017799,2]
[382527932,1756657849262,-841.77,0.00017799,2]
[382527935,1756657849276,-480.0,0.00017799,2]
[382527937,1756657849291,-759.14,0.00017799,2]
[382527940,1756657849305,-480.0,0.00017799,2]
[382527942,1756657849316,-2854.34,0.00017799,2]
[382527944,1756657849328,-480.0,0.00017799,2]
[382527947,1756657849341,-1222.41,0.00017799,2]
[382527949,1756657849357,-480.0,0.00017799,2]
[382527952,1756657849371,-2342.63,0.00017799,2]
[382527954,1756657849383,-533.66,0.00017799,2]
[382527956,1756657849396,-480.0,0.00017799,2]
[382527959,1756657849410,-480.0,0.00017799,2]
[382527961,1756657849422,-637.07,0.00017799,2]
[382527963,1756657849433,-1051.42,0.00017799,2]
[382527965,1756657849445,-480.0,0.00017799,2]
[382527968,1756657849456,-480.0,0.00017799,2]
[382527970,1756657849468,-565.60466085,0.00017799,2]
[382527972,1756657849480,-724.56,0.00017799,2]
[382527975,1756657849492,-480.0,0.00017799,2]
[382527977,1756657849504,-2511.97,0.00017799,2]
[382527979,1756657849516,-1853.11,0.00017799,2]
[382527981,1756657849528,-480.0,0.00017799,2]
[382527984,1756657849541,-480.0,0.00017799,2]
[382527986,1756657849553,-480.0,0.00017799,2]
[382527988,1756657849567,-1330.76,0.00017799,2]
[382527991,1756657849579,-1476.39,0.00017799,2]
[382527993,1756657849591,-480.0,0.00017799,2]
[382527995,1756657849602,-405.43790405,0.00017799,2]
[382527998,1756657849614,-1225.04,0.00017799,2]
[382528000,1756657849627,-480.0,0.00017799,2]
[382528002,1756657849639,-480.0,0.00017799,2]
[382528005,1756657849653,-1905.28,0.00017799,2]
[382528007,1756657849665,-547.5,0.00017799,2]
[382528009,1756657849677,-480.0,0.00017799,2]
[382528012,1756657849689,-1613.25,0.00017799,2]
[382528014,1756657849701,-1225.21,0.00017799,2]
[382528016,1756657849713,-1270.39,0.00017799,2]
[382528018,1756657849726,-480.0,0.00017799,2]
[382528021,1756657849738,-480.0,0.00017799,2]
[382528023,1756657849752,-480.0,0.000178,2]
[382528025,1756657849766,-610.9,0.000178,2]
[382528028,1756657849785,-480.0,0.000178,2]
[382528030,1756657849803,-598.24666933,0.000178,2]
[382528032,1756657849815,-480.0,0.000178,2]
[382528034,1756657849831,-986.67,0.000178,2]
[382528037,1756657849844,-746.18,0.000178,2]
[382528039,1756657849856,-491.07,0.000178,2]
[382528041,1756657849868,-480.0,0.000178,2]
[382528044,1756657849881,-480.0,0.000178,2]
[382528046,1756657849893,-587.65353831,0.000178,2]
[382528048,1756657849904,-525.1,0.000178,2]
[382528051,1756657849917,-480.0,0.000178,2]
[382528053,1756657849929,-480.0,0.000178,2]
[382528055,1756657849940,-647.59,0.000178,2]
[382528057,1756657849953,-480.0,0.000178,2]
[382528060,1756657849965,-151.0,0.000178,2]
[382528062,1756657849978,-151.0,0.000178,2]
[382528064,1756657849991,-806.18,0.000178,2]
[382528067,1756657850003,-480.0,0.000178,2]
[382528069,1756657850015,-480.0,0.000178,2]
[382528071,1756657850028,-552.83,0.000178,2]
[382528074,1756657850042,-480.0,0.000178,2]
[382528076,1756657850054,-480.0,0.000178,2]
[382528078,1756657850067,-480.0,0.000178,2]
[382528080,1756657850080,-523.54,0.000178,2]
[382528083,1756657850093,-480.0,0.000178,2]
[382528085,1756657850105,-624.3,0.000178,2]
[382528087,1756657850117,-480.0,0.000178,2]
[382528089,1756657850131,-151.0,0.000178,2]
[382528092,1756657850143,-151.0,0.000178,2]
[382528094,1756657850156,-151.0,0.000178,2]
[382528096,1756657850169,-154.702727,0.000178,2]
[382528099,1756657850181,-151.0,0.000178,2]